Cogmind - Beta 14 *** ADVENTURER MODE // 2024.08.07 @ 10:07:20 Player: Jefffff Result: Destroyed by QZ-WCK(R) with Subdweller Machine Gun Performance ------------- Evolutions (0) 0 Regions Visited (2) 400 Robots Destroyed (38) 190 Value Destroyed (942) 942 Prototype IDs (2) 40 Alien Tech Used (0) 0 Bonus (0) 0 TOTAL SCORE: 1572 Bonus ------- None Cogmind --------- Core Integrity 0/250 Matter 262/300 Energy 167/250 System Corruption 1% Temperature Cool (0) Movement Walking (470) Ox5 Location -10/Subcaves Parts ------- > --- POWER (1) -------- Ion Engine > --- PROPULSION (2) --- Aluminum Leg Wheel > --- UTILITY (2) ------ High-capacity Storage Unit > --- WEAPON (2) ------- Light Cannon Slug Cannon > --- INVENTORY (20) --- Light Ion Engine Light Ion Engine Wheel Battle Rifle Heavy Battle Rifle Light Cannon Battle Cannon Grenade Launcher Multitool Hammer Hammer Makeshift Axe Peak State ------------ > --- POWER ------------ Ion Engine > --- PROPULSION ------- Aluminum Leg Makeshift Leg > --- UTILITY ---------- Large Storage Unit Propulsion Shielding > --- WEAPON ----------- Heavy Battle Rifle Slug Cannon > --- INVENTORY -------- Ion Engine Light Ion Engine Light Ion Engine Aluminum Leg Wheel Wheel ECM Suite Riot Gun Light Cannon Light Cannon Grenade Launcher Hammer Hammer [Rating: 17] Favorites ----------- Power Light Nuclear Core Engine Ion Engine Power Core Light Nuclear Core Propulsion Aluminum Leg Leg Aluminum Leg Wheel Wheel Utility Large Storage Unit Device ECM Suite Storage Large Storage Unit Protection Propulsion Shielding Weapon Assault Rifle Energy Gun Riot Gun Energy Cannon Beam Cannon Ballistic Gun Assault Rifle Ballistic Cannon Light Cannon Impact Weapon Hammer Build | -11 -10 -10 ------- Run | Yrd Mat Sub Slots Evolved . | . . . Power . | . . . Propulsion . | . . . Utility . | . . . Weapon . | . . . Parts Attached 25 | . 8 17 Power 4 | . 1 3 Engine 3 | . . 3 Core 1 | . 1 . Reactor . | . . . Propulsion 6 | . 3 3 Treads . | . . . Leg 5 | . 3 2 Wheel 1 | . . 1 Hover . | . . . Flight . | . . . Utility 4 | . 2 2 Device 1 | . . 1 Storage 2 | . 1 1 Processor . | . . . Hackware . | . . . Protection 1 | . 1 . Artifact . | . . . Weapon 11 | . 2 9 Energy Gun 2 | . . 2 Energy Cannon 1 | . 1 . Ballistic Gun 3 | . 1 2 Ballistic Cannon 4 | . . 4 Launcher . | . . . Special Weapon . | . . . Impact Weapon 1 | . . 1 Slashing Weapon . | . . . Piercing Weapon . | . . . Special Melee Weapon . | . . . Unidentified Prototypes . | . . . Parts Lost 11 | . . 11 Power 2 | . . 2 Propulsion 2 | . . 2 Utility 2 | . . 2 Weapon 5 | . . 5 Highest Loss Streak 3 | . . 3 To Critical Strikes 1 | . . 1 Average Slot Usage (%) 98 | . 98 98 Engine 6 | . 2 8 Core 7 | . 11 4 Leg 27 | . 28 27 Device 4 | . . 6 Storage 14 | . 14 14 Protection 8 | . 12 7 Energy Gun 4 | . 1 5 Energy Cannon 7 | . 12 4 Ballistic Gun 9 | . 14 7 Ballistic Cannon 5 | . . 8 Impact Weapon 1 | . . 1 Peak Build Rating 17 | . 10 17 Average Rating 11 | . 8 12 On Entrance 7 | 6 6 10 Naked Turns . | . . . Heaviest Build 53 | 14 31 53 Greatest Support 30 | 20 20 30 Greatest Overweight (x) 1 | . 1 1 Average Overweight (x) . | . . . Largest Inventory Capacity 20 | . 15 20 Average Capacity 15 | . 13 16 Most Carried 15 | . 14 15 Average Carried 12 | . 10 13 Final Capacity 20 | 8 15 20 Final Carried 14 | 6 14 12 Class Distribution -------------------- 100% | Mutant Dominant Class ---------------- Mutant | -10/Materials Mutant | -10/Subcaves Resources | -11 -10 -10 ----------- Run | Yrd Mat Sub Matter Collected 1052 | 200 194 658 Remotely . | . . . Salvage Created 1064 | . 487 577 Parts 85 | . 39 46 Haulers Intercepted 2 | . 2 . Recyclers Shooed . | . . . Parts Field Recycled . | . . . Retrieved Matter . | . . . Parts Self-Destructed 17 | . . 17 Prevented 3 | . . 3 Kills | -11 -10 -10 ------- Run | Yrd Mat Sub Combat Hostiles Destroyed 29 | . 10 19 Guns 11 | . 3 8 Cannons 16 | . 7 9 Classes Destroyed 8 | . 5 3 Worker 4 | . 4 . Hauler 2 | . 2 . Turret 2 | . . 2 Watcher 1 | . 1 . Swarmer 10 | . 5 5 Grunt 5 | . 5 . Sentry 1 | . . 1 Subdweller 13 | . . 13 Best Kill Streak 12 | . 12 3 Combat Bots Only 4 | . 4 3 Max Kills in Single Turn 1 | . 1 1 Gunslinging . | . . . Exploded . | . . . Melee . | . . . Uniques/NPCs Destroyed . | . . . Combat | -11 -10 -10 -------- Run | Yrd Mat Sub Hostile Shots Fired 213 | . 55 158 Missed 76 | . 14 62 Damage Taken 1428 | . 354 1074 Core 263 | . 103 160 Absorbed by Shields . | . . . Redirected to Shielding 54 | . 24 30 Ignored by Resistances 433 | . 114 319 Core Remaining (%) 100 | 100 . . Volleys Fired 118 | . 39 79 Largest 2 | . 2 2 Hottest 85 | . 80 85 Shots Fired 227 | . 78 149 Gun 103 | . 40 63 Cannon 124 | . 38 86 Launcher . | . . . Special . | . . . Kinetic 157 | . 39 118 Thermal 48 | . 39 9 Explosive . | . . . Electromagnetic 22 | . . 22 Robot Hit Streak 27 | . 17 27 Robot Miss Streak 3 | . 3 2 Penetration Max . | . . . Secondary Targets . | . . . Shots Hit Robots 155 | . 51 104 Core Hits 55 | . 22 33 Critical Kills 4 | . . 4 Critical Parts Destroyed 3 | . 1 2 Critical Strikes 13 | . 1 12 Meltdown 2 | . . 2 Destroy 9 | . 1 8 Blast 2 | . . 2 Melee Attacks 6 | . . 6 Impact 6 | . . 6 Slashing . | . . . Piercing . | . . . Sneak Attacks . | . . . Combat Hostiles . | . . . Follow-up Attacks . | . . . Damage Inflicted 2686 | . 792 1894 Guns 983 | . 320 663 Cannons 1703 | . 472 1231 Explosions . | . . . Melee . | . . . Ramming . | . . . Kinetic 1808 | . 307 1501 Thermal 609 | . 485 124 Explosive . | . . . Electromagnetic 269 | . . 269 Impact . | . . . Slashing . | . . . Piercing . | . . . Highest Corruption 1 | . 1 1 Average Corruption 1 | . 1 1 Corruption Purged . | . . . Corruption Blocked . | . . . Effects 25 | . 7 18 Message Errors 3 | . 1 2 Matter Fused 8 | . . 8 Heat Flow Errors 2 | . 2 . Energy Discharges 5 | . 2 3 Parts Rejected 1 | . . 1 Data Loss (minor) 3 | . 2 1 Misfires 2 | . . 2 Weapon Failures 1 | . . 1 Overload Shots . | . . . Overflow Damage . | . . . Projectiles . | . . . Explosions . | . . . Melee . | . . . Knockbacks 4 | . . 4 Impact . | . . . Kinetic 4 | . . 4 Secondary . | . . . Self-Inflicted Damage . | . . . Shots . | . . . Rammed . | . . . Targets Rammed . | . . . Kicked . | . . . Crushed . | . . . Highest Temperature 308 | . 308 173 Average Temperature 91 | . 95 47 Received Heat Transfer 767 | . 156 611 Effects 1 | . 1 . Energy Bleed 1 | . 1 . Siege Activations . | . . . Robots Corrupted . | . . . Combat Hostiles . | . . . Parts Fried 3 | . . 3 Impact Corruptions . | . . . Robots Melted 2 | . . 2 Combat Hostiles 2 | . . 2 Parts Melted 2 | . . 2 Heat Transferred 1295 | . 1036 259 Parts Sabotaged . | . . . Parts Stolen . | . . . Parts Stripped . | . . . Power Chain Reactions . | . . . Alert | -11 -10 -10 ------- Run | Yrd Mat Sub Peak Influence 198 | . 198 . Initial . | . . . Average 48 | . 48 . Maximum Alert Level . | . . . Low Security (%) 100 | . 100 . Level 1 . | . . . Level 2 . | . . . Level 3 . | . . . Level 4 . | . . . Level 5 . | . . . High Security . | . . . Max Security . | . . . Squads Dispatched 1 | . 1 . Investigation 1 | . 1 . Extermination . | . . . Reinforcement . | . . . Assault . | . . . Garrison . | . . . Intercept . | . . . Searches Triggered . | . . . Construction Impeded . | . . . Haulers Reinforced . | . . . Active Scanning Responses . | . . . Cargo Convoy Interrupts . | . . . Stealth | -11 -10 -10 --------- Run | Yrd Mat Sub Distress Signals 1 | . 1 . Communications Jammed . | . . . Distress Signals . | . . . Times Spotted 42 | . 16 26 Peak Tracking Total 4 | . 4 4 Tactical Retreats 4 | . 1 3 Traps | -11 -10 -10 ------- Run | Yrd Mat Sub Traps Triggered 4 | . 4 . Indirectly . | . . . Trap Hack Attempts . | . . . Triggered . | . . . Disarmed . | . . . Reprogrammed . | . . . Reused . | . . . Traps Extracted . | . . . Installed . | . . . Triggered . | . . . Machines | -11 -10 -10 ---------- Run | Yrd Mat Sub Machines Disabled 2 | . 1 1 Max in Single Turn 1 | . 1 1 Machines Repaired . | . . . Machines Dismantled . | . . . Machines Sabotaged . | . . . Overloaded Fab Kills . | . . . Hacking | -11 -10 -10 --------- Run | Yrd Mat Sub Machines Accessed 6 | . 6 . Terminals 6 | . 6 . Fabricators . | . . . Repair Stations . | . . . Recycling Units . | . . . Scanalyzers . | . . . Garrison Access . | . . . Total Hacks 19 | . 19 . Successful 11 | . 11 . Failed 8 | . 8 . Catastrophic . | . . . Database Lockouts . | . . . Manual 10 | . 10 . Terminals 19 | . 19 . Fabricators . | . . . Repair Stations . | . . . Recycling Units . | . . . Scanalyzers . | . . . Garrison Access . | . . . Terminal Hacks 6 | . 6 . Record 4 | . 4 . Prototype ID Bank 1 | . 1 . Hauler Manifests 1 | . 1 . Fabricator Hacks . | . . . Repair Station Hacks . | . . . Recycling Unit Hacks . | . . . Scanalyzer . | . . . Garrison Access Hacks . | . . . Unauthorized Hacks 5 | . 5 . Terminals 5 | . 5 . Botnet 5 | . 5 . Fabricators . | . . . Repair Stations . | . . . Recycling Units . | . . . Scanalyzers . | . . . Garrison Access . | . . . Data Cores Recovered . | . . . Used . | . . . Hacking Detections 4 | . 4 . Full Trace Events 1 | . 1 . Feedback Events . | . . . Feedback Blocked . | . . . Robot Schematics Acquired . | . . . Robots Built . | . . . Authchips . | . . . Time . | . . . Total Robot Build Rating . | . . . Part Schematics Acquired . | . . . Parts Built . | . . . Authchips . | . . . Time . | . . . Total Part Build Rating . | . . . Parts Repaired . | . . . Time . | . . . Parts Recycled . | . . . Recycled Matter . | . . . Retrieved Matter . | . . . Retrieved Components . | . . . Parts Scanalyzed . | . . . Part Schematics Acquired . | . . . Parts Damaged . | . . . Bothacking | -11 -10 -10 ------------ Run | Yrd Mat Sub Used RIF Installer . | . . . Robots Hacked . | . . . Non-combat . | . . . Combat . | . . . Robot Hacks Applied . | . . . Relay Couplers Released . | . . . Fabnet Peak Effective % . | . . . Robots Rewired . | . . . Allies Hacked . | . . . Hacks Repelled . | . . . Allies | -11 -10 -10 -------- Run | Yrd Mat Sub Total Allies . | . . . Largest Group . | . . . Highest-Rated Group . | . . . Highest-Rated Ally . | . . . Total Orders . | . . . Ally Attacks . | . . . Total Damage . | . . . Kills . | . . . Allies Corrupted . | . . . Allies Melted . | . . . Intel | -11 -10 -10 ------- Run | Yrd Mat Sub Robot Analysis Total . | . . . Derelict Logs Recovered 2 | . . 2 Drone Launches . | . . . Drone Recoveries . | . . . Exploration | -11 -10 -10 ------------- Run | Yrd Mat Sub Turns Passed 3388 | . 1178 2210 Spaces Moved 1599 | 1 615 983 Core . | . . . Treads . | . . . Legs 1599 | 1 615 983 Wheels . | . . . Hover . | . . . Flight . | . . . Fastest Speed 120 | 120 120 130 Average Speed 184 | 120 167 194 Slowest Speed 200 | 120 190 200 Overloaded Moves . | . . . Propulsion Burnouts . | . . . Robots Hopped . | . . . Cave-ins Triggered . | . . . Exploration Rate (%) 50 | 1 77 74 Regions Visited 2 Branch Regions 1 Pre-discovered Areas 1 | . . 1 Known Exits Taken . | . . . Unknown Exits Taken 2 | 1 1 . Scrap Searched 3 | . . 3 Spaces Dug . | . . . Terrain Destroyed 5 | . . 5 Melee . | . . . Projectile 5 | . . 5 AOE . | . . . Terrain Rammed . | . . . Walls Destroyed . | . . . Machines Disabled . | . . . Actions | -11 -10 -10 --------- Run | Yrd Mat Sub Total 1810 | . 684 1126 Wait 27 | . 1 26 Move 1597 | . 614 983 Hop . | . . . Pick Up 22 | . 12 10 Fast Attach 3 | . 2 1 Attach 10 | . . 10 Detach . | . . . Swap 12 | . 6 6 Drop 15 | . 10 5 Fire 118 | . 39 79 Melee 6 | . . 6 Ram . | . . . Kick . | . . . Crush . | . . . Escape Stasis . | . . . Rewire . | . . . Trap . | . . . Miscellaneous . | . . . Route ------- -11/Scrapyard -10/Materials (discovered 4 exits: [*Mat x2] / [*Min] / [*Sub]) -10/Subcaves (discovered 2 exits: [*Mat] / [*Rec]) History --------- Turn | Location | Event 1 | -11/Scrapyard | Discovered new exit (range 0) 1 | -11/Scrapyard | Entered Materials 85 | -10/Materials | Discovered new exit (range 16) 306 | -10/Materials | Build established: Mutant 338 | -10/Materials | Discovered new exit (range 10) 456 | -10/Materials | Discovered new exit (range 11) 1165 | -10/Materials | Discovered new exit (range 8) 1179 | -10/Materials | Entered Subcaves 1187 | -10/Subcaves | Learned location of Recycling (-7) 1204 | -10/Subcaves | Learned Materials security intel 1516 | -10/Subcaves | A swath of the cavern ceiling suddenly collapsed 1921 | -10/Subcaves | Ambushed by Subdwellers from Twisted Machinery 1949 | -10/Subcaves | Core integrity fell below 50% 2037 | -10/Subcaves | Discovered new exit (range 9) 2146 | -10/Subcaves | Shifting Twisted Machinery released Sub. Beam Cannon 2148 | -10/Subcaves | Shifting Twisted Machinery released Mak. Leg 2185 | -10/Subcaves | A swath of the cavern ceiling suddenly collapsed 2228 | -10/Subcaves | Discovered new exit (range 5) 2289 | -10/Subcaves | A Subdweller sparked back to life 2289 | -10/Subcaves | A Subdweller sparked back to life 2289 | -10/Subcaves | A Subdweller sparked back to life 2890 | -10/Subcaves | Core integrity fell below 20% 3087 | -10/Subcaves | Shifting Twisted Machinery released Mak. Axe 3126 | -10/Subcaves | Shifting Twisted Machinery released Mak. Laser 3376 | -10/Subcaves | Ambushed by Subdwellers from Twisted Machinery 3389 | -10/Subcaves | Destroyed by QZ-WCK(R) with Subdweller Machine Gun Last Messages --------------- Mak. Laser falls loose from the Twisted Machinery. 03357_ S-10 Pest destroyed. 03366_ Flight Unit fries itself beyond repair. 03367_ Lgt. Ion Engine self-destruct mechanism malfunctions. 03367_ Acquired 22 matter. 03371_ Lgt. Assault Rifle fries itself beyond repair. 03371_ Acquired 20 matter. 03375_ Acquired 6 matter. 03376_ YH-IG3(R) emerges from the Twisted Machinery. 03377_ Flight Unit fries itself beyond repair. 03377_ Riot Gun destroyed. 03380_ Acquired 4 matter. 03382_ Acquired 2 matter. 03385_ ECM Suite destroyed. 03387_ Mak. Leg destroyed. 03389_ System corrupted: Energy discharge (-67). Map ----- +----------------------------------------------------+ | ?????????????????????????????????????????????????? | | ?????????????????????????????????????????????????? | | ?????????????????????????????????????????????????? | | ?????????????????????????????????????????????????? | | ?????????????????????????????????????????????????? | | ?????????????????????????????????????????????????? | | ?????????????????????????????????????????????????? | | ?????????????????????????????????????????????????? | | ?????????????????????????????????????????????????? | | ?????????????????????????????????????????????????? | | ?????????????????????????????????????????????????? | | ?????????????????????????????????????????????????? | | ?????????????????????????????????????????????????? | | ?????????????????????????????????????????????????? | | ??????????????????## ???????????"" ?????????????? | | ?????????????????## ?????????? " #?????????????? | | ?????????????????? #???????? R %#?????????????? | | ??????????????????? #?###### %#?????????????? | | ???????????????????# ## ???????????????? | | ???????????????????# "" ????????????????? | | ????????????????????# "" ????????##???????? | | ?????????????????????# ????????# ????????? | | ??????????????????????# ??????## ????????? | | ???????????????????????# #??????# # #?????????? | | ??????????????# ??????# #??????# #??????????? | | ????????????????# ### @ ###???# ##?????????? | | ????????????????# % ##?? ##????????? | | ????????????????# # ## * ### #????????? | | ???????????????# ??#?## #????????? | | ????????????? ### #????????????? | | ???????????? ##????????????? | | ???????????? ##?????????????? | | ????????????? #??????????????? | | ????????????? ## ##?????????????? | | ?????????????? #### #?????????????? | | ????????????? #### #?????????????? | | ?????????????? #?# ##?????????????? | | ?????????????? ### ?## #??????????????? | | ??????????????????######## ##??????????????? | | ????????????????????????# #???????????????? | | ???????????????????????## #???????????????? | | ??????????????????????## ## #???????????????? | | ??????????????????????# #### ##???????????????? | | ??????????????????????# ##??###????????????????? | | ??????????????????????# #??????????????????????? | | ??????????????????????## #??????????????????????? | | ????????????????????### #??????????????????????? | | ???????????????????## #?###??????????????????? | | ???????????????????# ## #??????????????????? | | ???????????????????## # # #??????????????????? | +----------------------------------------------------+ Best States ------------- Heat Dissipation 25 Energy Generation 14 Energy Capacity 250 Matter Stores 300 Matter Capacity 300 Sight Range 16 Terrain Scan Density 10 ECM Strength 1 Resistance: KI 20 Resistance: TH 20 Resistance: EX 20 Resistance: EM 20 Resistance: I 20 Resistance: S 20 Resistance: P 20 Propulsion Shielding 33 Evasion (%) 55 Offensive Hacking 10 Item Schematics ----------------- None Robot Schematics ------------------ None Fabricated ------------ Nothing Alien Tech Used ----------------- None Achievements -------------- None Challenges ------------ None Game ------ Seed NetworkContainmentCarapace Manual? 0 Play Time 00:16:03 Cumulative 127.8 hours Start 2024.08.07 @ 09:48:14 End 2024.08.07 @ 10:07:20 Sessions 1 Manual Loads 0 Difficulty Adventurer Special Mode None Game No. 176 Rogue 0 Adventurer 176 Explorer 0 Win Type - Total 0 Types 0/0/0/0/0/0/0/0/0 Lore% 30 Gallery% 50 Achievement% 37 Wizard Run 0 Options --------- Layout 2 ASCII 0 Keyboard 0 Movement Mouse Keybinds 0 Fullscreen 2 Font 48/Terminus Map View 50x44 Zoom Use 0% Tactical HUD 1 Map Filters NONE Filters NONE Steam 1 RUN: ec2086e7-bd18-4a86-a434-e9675eb91c22